fUSD/lending_fUSD_20240302
["ID","MTS","AMOUNT","RATE_DAILY","PERIOD"]
[316052200,1709339446956,-2162.91,0.00021917,2]
[316052202,1709339446965,-500.0,0.00021917,2]
[316052204,1709339446974,-1009.77,0.00021917,2]
[316052206,1709339446983,-31058.01,0.00021917,2]
[316052208,1709339446993,-563.26,0.00021917,2]
[316052210,1709339447003,-500.0,0.00021917,2]
[316052212,1709339447012,-500.0,0.00021917,2]
[316052214,1709339447022,-500.0,0.00021917,2]
[316052217,1709339447031,-500.0,0.00021917,2]
[316052219,1709339447040,-500.0,0.00021917,2]
[316052221,1709339447051,-8410.06,0.00021917,2]
[316052222,1709339447060,-914.6,0.00021917,2]
[316052225,1709339447070,-500.0,0.00021917,2]
[316052227,1709339447079,-770.23,0.00021917,2]
[316052229,1709339447088,-658.66,0.00021917,2]
[316052231,1709339447097,-500.0,0.00021917,2]
[316052232,1709339447106,-3025.68,0.00021917,2]
[316052234,1709339447116,-757.93,0.00021917,2]
[316052237,1709339447125,-1309.26,0.00021917,2]
[316052238,1709339447134,-3794.51,0.00021917,2]
[316052239,1709339447143,-500.0,0.00021917,2]
[316052240,1709339447152,-500.0,0.00021917,2]
[316052241,1709339447161,-2362.33,0.00021917,2]
[316052242,1709339447170,-818.76,0.00021917,2]
[316052243,1709339447179,-1715.39,0.00021917,2]
[316052244,1709339447188,-500.0,0.00021917,2]
[316052245,1709339447196,-500.0,0.00021917,2]
[316052247,1709339447206,-500.0,0.00021917,2]
[316052249,1709339447215,-348.92,0.00021917,2]
[316052251,1709339447224,-789.18,0.00021917,2]
[316052253,1709339447233,-500.0,0.00021917,2]
[316052255,1709339447242,-500.0,0.00021917,2]
[316052257,1709339447252,-500.0,0.00021917,2]
[316052259,1709339447266,-13101.94,0.00021917,2]
[316052261,1709339447276,-500.0,0.00021917,2]
[316052263,1709339447285,-500.0,0.00021917,2]
[316052265,1709339447296,-731.24,0.00021917,2]
[316052267,1709339447306,-4628.26,0.00021917,2]
[316052269,1709339447316,-500.0,0.00021917,2]
[316052271,1709339447326,-2049.61,0.00021917,2]
[316052273,1709339447335,-2052.52,0.00021917,2]
[316052275,1709339447345,-500.0,0.00021917,2]
[316052277,1709339447356,-517.07624855,0.00021917,2]
[316052279,1709339447365,-500.0,0.00021917,2]
[316052281,1709339447375,-500.0,0.00021917,2]
[316052283,1709339447384,-1033.37,0.00021917,2]
[316052286,1709339447394,-500.0,0.00021917,2]
[316052288,1709339447406,-500.0,0.00021917,2]
[316052290,1709339447415,-666.47,0.00021917,2]
[316052292,1709339447425,-500.0,0.00021917,2]
[316052294,1709339447435,-847.34,0.00021917,2]
[316052296,1709339447445,-500.0,0.00021917,2]
[316052298,1709339447455,-500.0,0.00021917,2]
[316052300,1709339447464,-1201.11,0.00021917,2]
[316052302,1709339447473,-504.56268338,0.00021917,2]
[316052304,1709339447483,-500.0,0.00021917,2]
[316052306,1709339447492,-500.0,0.00021917,2]
[316052308,1709339447502,-942.97,0.00021917,2]
[316052310,1709339447511,-771.97,0.00021917,2]
[316052312,1709339447521,-1128.09,0.00021917,2]
[316052314,1709339447530,-500.0,0.00021917,2]
[316052316,1709339447539,-530.49039664,0.00021917,2]
[316052318,1709339447550,-1204.51,0.00021917,2]
[316052320,1709339447559,-718.2,0.00021917,2]
[316052322,1709339447569,-500.0,0.00021917,2]
[316052324,1709339447578,-2565.14,0.00021917,2]
[316052326,1709339447587,-500.0,0.00021917,2]
[316052328,1709339447596,-645.83,0.00021917,2]
[316052330,1709339447605,-596.8,0.00021917,2]
[316052332,1709339447615,-1441.86,0.00021917,2]
[316052334,1709339447624,-3189.19,0.00021917,2]
[316052336,1709339447633,-506.4714573,0.00021917,2]
[316052338,1709339447642,-933.22,0.00021917,2]
[316052340,1709339447652,-1081.51,0.00021917,2]
[316052342,1709339447662,-533.86,0.00021917,2]
[316052344,1709339447672,-810.88,0.00021917,2]
[316052346,1709339447681,-4304.97,0.00021917,2]
[316052348,1709339447690,-500.0,0.00021917,2]
[316052350,1709339447699,-2089.97,0.00021917,2]
[316052352,1709339447709,-500.0,0.00021917,2]
[316052354,1709339447718,-704.06,0.00021917,2]
[316052356,1709339447727,-505.16,0.00021917,2]
[316052358,1709339447737,-500.0,0.00021917,2]
[316052360,1709339447746,-2402.7,0.00021917,2]
[316052362,1709339447756,-1338.67,0.00021917,2]
[316052364,1709339447765,-503.17,0.00021917,2]
[316052366,1709339447774,-775.58,0.00021917,2]
[316052368,1709339447783,-997.36,0.00021917,2]
[316052370,1709339447795,-1491.02,0.00021917,2]
[316052372,1709339447805,-500.0,0.00021917,2]
[316052374,1709339447814,-500.0,0.00021917,2]
[316052376,1709339447824,-500.0,0.00021917,2]
[316052378,1709339447833,-604.97,0.00021917,2]
[316052380,1709339447843,-964.14,0.00021917,2]
[316052382,1709339447852,-500.0,0.00021917,2]
[316052384,1709339447861,-1081.72,0.00021917,2]
[316052386,1709339447871,-2025.22,0.00021917,2]
[316052388,1709339447880,-500.0,0.00021917,2]
[316052390,1709339447889,-2558.2,0.00021917,2]
[316052392,1709339447898,-500.0,0.00021917,2]
[316052394,1709339447907,-500.0,0.00021917,2]
[316052396,1709339447916,-500.0,0.00021917,2]
[316052398,1709339447925,-1180.33,0.00021917,2]
[316052400,1709339447934,-500.0,0.00021917,2]
[316052403,1709339447944,-601.73,0.00021917,2]
[316052404,1709339447953,-500.0,0.00021917,2]
[316052407,1709339447963,-500.0,0.00021917,2]
[316052409,1709339447972,-1011.91,0.00021917,2]
[316052411,1709339447981,-1820.9,0.00021917,2]
[316052413,1709339447991,-942.17,0.00021917,2]
[316052415,1709339448000,-500.0,0.00021917,2]
[316052417,1709339448010,-500.0,0.00021917,2]
[316052419,1709339448019,-1016.95,0.00021917,2]
[316052421,1709339448029,-500.0,0.00021917,2]
[316052422,1709339448038,-1120.05,0.00021917,2]
[316052423,1709339448048,-1149.62,0.00021917,2]
[316052424,1709339448058,-552.55,0.00021917,2]
[316052425,1709339448067,-898.5,0.00021917,2]
[316052426,1709339448077,-500.0,0.00021917,2]
[316052427,1709339448086,-740.48,0.00021917,2]
[316052429,1709339448095,-500.0,0.00021917,2]
[316052431,1709339448104,-2923.78,0.00021917,2]
[316052433,1709339448113,-1876.6,0.00021917,2]
[316052435,1709339448122,-500.0,0.00021917,2]
[316052436,1709339448132,-500.0,0.00021917,2]
[316052437,1709339448141,-500.0,0.00021917,2]
[316052438,1709339448150,-2464.94,0.00021917,2]
[316052440,1709339448161,-237.47361302,0.00021917,2]
[316052442,1709339448170,-545.49,0.00021917,2]
[316052444,1709339448179,-500.0,0.00021917,2]
[316052446,1709339448189,-500.0,0.00021917,2]
[316052448,1709339448198,-1139.82,0.00021917,2]
[316052450,1709339448208,-500.0,0.00021917,2]
[316052451,1709339448218,-3955.89,0.00021917,2]
[316052453,1709339448228,-500.0,0.00021917,2]
[316052454,1709339448238,-682.15,0.00021917,2]
[316052455,1709339448248,-1287.34,0.00021917,2]
[316052456,1709339448259,-429.02563677,0.00021917,2]
[316052457,1709339448269,-500.0,0.00021917,2]
[316052459,1709339448283,-837.21,0.00021917,2]
[316052461,1709339448292,-587.12,0.00021917,2]
[316052463,1709339448302,-1534.8,0.00021917,2]
[316052465,1709339448311,-710.41,0.00021917,2]
[316052467,1709339448321,-500.0,0.00021917,2]
[316052469,1709339448330,-500.0,0.00021917,2]
[316052471,1709339448340,-500.0,0.00021917,2]
[316052473,1709339448349,-944.74,0.00021917,2]
[316052475,1709339448360,-500.0,0.00021917,2]
[316052477,1709339448369,-500.0,0.00021917,2]
[316052479,1709339448379,-500.0,0.00021917,2]
[316052481,1709339448389,-1735.5,0.00021917,2]
[316052483,1709339448398,-1124.3,0.00021917,2]
[316052485,1709339448408,-827.36,0.00021917,2]
[316052487,1709339448417,-731.88,0.00021917,2]
[316052489,1709339448426,-1061.25,0.00021917,2]
[316052491,1709339448436,-12921.08,0.00021917,2]
[316052493,1709339448445,-500.0,0.00021917,2]
[316052495,1709339448455,-500.0,0.00021917,2]
[316052498,1709339448464,-500.0,0.00021917,2]
[316052500,1709339448473,-920.08,0.00021917,2]
[316052502,1709339448482,-500.0,0.00021917,2]
[316052504,1709339448492,-500.0,0.00021917,2]
[316052505,1709339448501,-7369.59,0.00021917,2]
[316052508,1709339448511,-704.36,0.00021917,2]
[316052510,1709339448520,-500.0,0.00021917,2]
[316052512,1709339448529,-576.29,0.00021917,2]
[316052514,1709339448538,-1194.33,0.00021917,2]
[316052516,1709339448548,-617.38,0.00021917,2]
[316052518,1709339448557,-500.0,0.00021917,2]
[316052520,1709339448567,-500.0,0.00021917,2]
[316052522,1709339448576,-500.0,0.00021917,2]
[316052524,1709339448586,-500.0,0.00021917,2]
[316052526,1709339448595,-500.0,0.00021917,2]
[316052528,1709339448605,-662.41,0.00021917,2]
[316052530,1709339448614,-500.0,0.00021917,2]
[316052532,1709339448623,-500.0,0.00021917,2]
[316052534,1709339448632,-501.97,0.00021917,2]
[316052536,1709339448641,-19473.97,0.00021917,2]
[316052538,1709339448651,-500.0,0.00021917,2]
[316052540,1709339448660,-500.0,0.00021917,2]
[316052542,1709339448670,-500.0,0.00021917,2]
[316052544,1709339448680,-472.67374031,0.00021917,2]
[316052546,1709339448690,-938.59,0.00021917,2]
[316052548,1709339448699,-1295.21,0.00021917,2]
[316052550,1709339448709,-1176.2,0.00021917,2]
[316052552,1709339448718,-658.46,0.00021917,2]
[316052554,1709339448727,-1634.99,0.00021917,2]
[316052555,1709339448737,-500.0,0.00021917,2]
[316052556,1709339448747,-500.0,0.00021917,2]
[316052557,1709339448756,-500.0,0.00021917,2]
[316052558,1709339448766,-769.49,0.00021917,2]
[316052559,1709339448775,-500.0,0.00021917,2]
[316052560,1709339448785,-500.0,0.00021917,2]
[316052561,1709339448794,-200.0,0.00021918,2]
[316052562,1709339448803,-10000.0,0.00021918,2]
[316052563,1709339448812,-5000.0,0.00021918,2]
[316052564,1709339448822,-5000.0,0.00021918,2]
[316052565,1709339448831,-153.044639,0.00021918,7]
[316052566,1709339448841,-151.0,0.00021918,2]
[316052567,1709339448851,-151.0,0.00021918,2]
[316052568,1709339448860,-151.0,0.00021918,7]
[316052569,1709339448870,-151.0,0.00021918,7]
[316052570,1709339448880,-154.302091,0.00021918,7]
[316052571,1709339448889,-151.0,0.00021918,7]
[316052572,1709339448899,-25221.17671209,0.00021922,2]
[316052573,1709339448908,-300.0,0.00021924,2]
[316052575,1709339448918,-301.90909803,0.00021924,2]
[316052577,1709339448927,-151.0,0.00021924,7]
[316052579,1709339448937,-279.886984,0.00021924,7]
[316052581,1709339448946,-279.886984,0.00021924,7]
[316052583,1709339448956,-318.307906,0.00021924,7]
[316052585,1709339448965,-318.307906,0.00021924,7]
[316052587,1709339448975,-451.054895,0.00021924,7]
[316052589,1709339448984,-451.054895,0.00021924,7]
[316052597,1709339449059,-151.0,0.00021924,7]
[316052598,1709339449068,-1645.59378483,0.00021925,2]
[316052599,1709339449077,-200.0,0.00021925,2]
[316052600,1709339449086,-256.8937596,0.00021927,2]
[316052601,1709339449095,-158.51591258,0.00021927,2]
[316052602,1709339449104,-820.80934078,0.00021927,2]
[316052603,1709339449113,-6854.66324652,0.00021927,2]
[316052604,1709339449122,-340.7772275,0.00021945,2]
[316052605,1709339449132,-151.11182199,0.00021949,2]
[316052606,1709339449141,-164.78230144,0.00021951,2]
[316052607,1709339449150,-200.0,0.00021959,2]
[316052608,1709339449159,-200.0,0.00021959,2]
[316052609,1709339449169,-500.0,0.00021959,2]
[316052610,1709339449179,-200.0,0.00021959,2]
[316052611,1709339449188,-155.08429515,0.00021967,2]
[316052612,1709339449198,-12067.68118207,0.00021977,2]
[316052613,1709339449207,-153.44535668,0.00021987,2]
[316052614,1709339449216,-500.0,0.00021999,2]
[316052615,1709339449226,-1085.66,0.00022,5]
[316052616,1709339449235,-269.0,0.00022,2]
[316052617,1709339449245,-362.76736413,0.00022,2]
[316052618,1709339449254,-329249.28408129,0.00022,2]
[316052619,1709339449267,-1296.0,0.00022,2]
[316052620,1709339449277,-999.0,0.00022,4]
[316052621,1709339449288,-12441.63085894,0.00022,2]
[316052622,1709339449298,-2600.0,0.00022,3]
[316052623,1709339449307,-150.0,0.00022,2]
[316052624,1709339449316,-1466.17350424,0.00022,2]
[316052625,1709339449326,-938.36,0.00022,5]
[316052626,1709339449335,-151.0,0.00022,2]
[316052627,1709339449345,-151.0,0.00022,2]
[316052628,1709339449358,-279.886984,0.00022,7]
[316052629,1709339449367,-279.886984,0.00022,7]
[316052630,1709339449377,-318.307906,0.00022,7]
[316052631,1709339449386,-318.307906,0.00022,7]
[316052632,1709339449396,-451.054895,0.00022,7]
[316052633,1709339449405,-451.054895,0.00022,7]
[316052634,1709339449415,-151.0,0.00022,7]
[316052635,1709339449423,-151.0,0.00022,7]
[316052636,1709339449433,-151.0,0.00022,7]
[316052637,1709339449442,-166.66666666,0.00022005,2]
[316052638,1709339449451,-12000.0,0.00022009,2]
[316052639,1709339449461,-12000.0,0.0002201,2]
[316052640,1709339449471,-12000.0,0.00022011,2]
[316052641,1709339449480,-884.39035192,0.00022012,2]
[316052642,1709339449489,-200.0,0.00022013,2]
[316052643,1709339449499,-231.20324965,0.00022013,2]
[316052644,1709339449508,-500.0,0.00022013,2]
[316052645,1709339449518,-12000.0,0.00022013,2]
[316052646,1709339449527,-12000.0,0.00022014,2]
[316052647,1709339449536,-12000.0,0.00022014,2]
[316052648,1709339449545,-12000.0,0.00022015,2]
[316052649,1709339449554,-12000.0,0.00022016,2]
[316052650,1709339449563,-1645.59378483,0.00022016,2]
[316052651,1709339449573,-12000.0,0.00022017,2]
[316052652,1709339449582,-12000.0,0.00022017,2]
[316052653,1709339449591,-12000.0,0.00022018,2]
[316052654,1709339449600,-12000.0,0.00022018,2]
[316052655,1709339449609,-12000.0,0.00022018,2]
[316052656,1709339449619,-12000.0,0.00022018,2]
[316052657,1709339449628,-12000.0,0.00022018,2]
[316052658,1709339449637,-12000.0,0.0002202,2]
[316052659,1709339449646,-12000.0,0.0002202,2]
[316052660,1709339449655,-12000.0,0.00022022,2]
[316052661,1709339449664,-150.8909585,0.00022023,2]
[316052662,1709339449674,-221.73004834,0.00022023,2]
[316052663,1709339449683,-12000.0,0.00022023,2]
[316052664,1709339449692,-12000.0,0.00022023,2]
[316052665,1709339449701,-7999.99,0.00022023,2]
[316052666,1709339449710,-702.14144221,0.00022024,2]
[316052667,1709339449719,-5336.69836433,0.00022024,2]
[316052668,1709339449728,-12000.0,0.00022024,2]
[316052669,1709339449737,-500.0,0.00022025,2]
[316052670,1709339449746,-8577.59122242,0.00022026,2]
[316052671,1709339449755,-133658.9,0.00022026,2]
[316052672,1709339449764,-12000.0,0.00022026,2]
[316052673,1709339449773,-151.0,0.00022026,2]
[316052674,1709339449782,-151.0,0.00022026,2]
[316052675,1709339449791,-279.886984,0.00022026,7]
[316052676,1709339449801,-279.886984,0.00022026,7]
[316052677,1709339449810,-318.307906,0.00022026,7]
[316052678,1709339449819,-318.307906,0.00022026,7]
[316052679,1709339449827,-451.054895,0.00022026,7]
[316052680,1709339449836,-451.054895,0.00022026,7]
[316052681,1709339449845,-151.0,0.00022026,7]
[316052682,1709339449854,-500.0,0.00022026,2]
[316052683,1709339449863,-500.0,0.00022026,2]
[316052684,1709339449872,-500.0,0.00022026,2]
[316052685,1709339449881,-321.00994822,0.00022027,2]
[316052686,1709339449890,-155.0,0.00022027,2]
[316052687,1709339449899,-500.0,0.00022027,2]
[316052688,1709339449908,-500.0,0.00022027,2]
[316052689,1709339449917,-500.0,0.00022027,2]
[316052690,1709339449926,-500.0,0.00022027,2]
[316052691,1709339449935,-500.0,0.00022027,2]
[316052692,1709339449944,-500.0,0.00022027,2]
[316052693,1709339449953,-500.0,0.00022027,2]
[316052694,1709339449962,-500.0,0.00022027,2]
[316052695,1709339449970,-500.0,0.00022027,2]
[316052696,1709339449979,-500.0,0.00022027,2]
[316052697,1709339449989,-500.0,0.00022027,2]
[316052698,1709339449998,-409.1144449,0.00022027,2]
[316052699,1709339450007,-500.0,0.00022027,2]
[316052700,1709339450016,-500.0,0.00022027,2]
[316052701,1709339450025,-500.0,0.00022027,2]
[316052702,1709339450034,-500.0,0.00022027,2]
[316052703,1709339450044,-500.0,0.00022027,2]
[316052704,1709339450054,-500.0,0.00022027,2]
[316052705,1709339450064,-500.0,0.00022027,2]
[316052706,1709339450073,-500.0,0.00022027,2]
[316052707,1709339450082,-152.545875,0.00022027,7]
[316052708,1709339450091,-500.0,0.00022027,2]
[316052709,1709339450100,-500.0,0.00022027,2]
[316052710,1709339450110,-500.0,0.00022027,2]
[316052711,1709339450119,-500.0,0.00022027,2]
[316052712,1709339450128,-500.0,0.00022027,2]
[316052713,1709339450137,-500.0,0.00022027,2]
[316052714,1709339450146,-500.0,0.00022027,2]
[316052715,1709339450156,-500.0,0.00022027,2]
[316052716,1709339450165,-500.0,0.00022027,2]
[316052717,1709339450174,-500.0,0.00022027,2]
[316052718,1709339450184,-500.0,0.00022027,2]
[316052719,1709339450193,-154.209444,0.00022027,7]
[316052720,1709339450202,-500.0,0.00022027,2]
[316052721,1709339450212,-500.0,0.00022027,2]
[316052722,1709339450222,-500.0,0.00022027,2]
[316052723,1709339450231,-500.0,0.00022027,2]
[316052724,1709339450240,-500.0,0.00022027,2]
[316052725,1709339450250,-500.0,0.00022027,2]
[316052726,1709339450260,-500.0,0.00022027,2]
[316052727,1709339450270,-500.0,0.00022027,2]
[316052728,1709339450280,-500.0,0.00022027,2]
[316052729,1709339450289,-500.0,0.00022027,2]
[316052730,1709339450300,-530.95,0.00022027,2]
[316052731,1709339450309,-500.0,0.00022027,2]
[316052732,1709339450318,-151.560633,0.00022027,7]
[316052733,1709339450327,-500.0,0.00022027,2]
[316052734,1709339450336,-500.0,0.00022027,2]
[316052735,1709339450346,-175.5054657,0.00022027,2]
[316052736,1709339450356,-500.0,0.00022027,2]
[316052737,1709339450365,-500.0,0.00022027,2]
[316052738,1709339450374,-500.0,0.00022027,2]
[316052739,1709339450383,-500.0,0.00022027,2]
[316052740,1709339450393,-500.0,0.00022027,2]
[316052741,1709339450402,-500.0,0.00022027,2]
[316052742,1709339450411,-500.0,0.00022027,2]
[316052743,1709339450421,-540.53497435,0.00022027,2]
[316052744,1709339450430,-500.0,0.00022027,2]
[316052745,1709339450439,-500.0,0.00022027,2]
[316052746,1709339450449,-500.0,0.00022027,2]
[316052747,1709339450458,-500.0,0.00022027,2]
[316052748,1709339450467,-500.0,0.00022027,2]
[316052749,1709339450476,-513.79867757,0.00022027,2]
[316052750,1709339450486,-500.0,0.00022027,2]
[316052751,1709339450495,-500.0,0.00022027,2]
[316052752,1709339450505,-500.0,0.00022027,2]
[316052753,1709339450514,-658.75,0.00022027,2]
[316052754,1709339450523,-586.18,0.00022027,2]
[316052755,1709339450532,-500.0,0.00022027,2]
[316052756,1709339450541,-500.0,0.00022027,2]
[316052757,1709339450552,-500.0,0.00022027,2]
[316052758,1709339450561,-500.0,0.00022027,2]
[316052759,1709339450570,-151.0,0.00022027,7]
[316052760,1709339450579,-500.0,0.00022027,2]
[316052761,1709339450589,-559.5645854,0.00022027,2]
[316052762,1709339450598,-258.36187762,0.00022027,2]
[316052763,1709339450608,-500.0,0.00022027,2]
[316052764,1709339450617,-509.09108018,0.00022027,2]
[316052765,1709339450627,-571.68,0.00022027,2]
[316052766,1709339450636,-12000.0,0.00022027,2]
[316052767,1709339450645,-500.0,0.00022027,2]
[316052768,1709339450654,-500.0,0.00022027,2]
[316052769,1709339450663,-500.0,0.00022027,2]
[316052770,1709339450673,-500.0,0.00022027,2]
[316052771,1709339450682,-500.0,0.00022027,2]
[316052772,1709339450691,-500.0,0.00022027,2]
[316052773,1709339450700,-500.0,0.00022027,2]
[316052774,1709339450709,-500.0,0.00022027,2]
[316052775,1709339450719,-500.0,0.00022027,2]
[316052776,1709339450729,-500.0,0.00022027,2]
[316052777,1709339450738,-500.0,0.00022027,2]
[316052778,1709339450747,-12000.0,0.00022027,2]
[316052779,1709339450757,-202.64142203,0.00022027,2]
[316052780,1709339450766,-207.97026731,0.00022027,2]
[316052781,1709339450776,-500.0,0.00022027,2]
[316052782,1709339450785,-500.0,0.00022027,2]
[316052783,1709339450794,-500.0,0.00022027,2]
[316052784,1709339450803,-12000.0,0.00022027,2]
[316052785,1709339450813,-500.0,0.00022027,2]
[316052786,1709339450821,-500.0,0.00022027,2]
[316052787,1709339450830,-500.0,0.00022027,2]
[316052788,1709339450839,-500.0,0.00022027,2]
[316052789,1709339450849,-566.29,0.00022027,2]
[316052790,1709339450858,-513.58,0.00022027,2]
[316052791,1709339450867,-500.0,0.00022027,2]
[316052792,1709339450876,-151.0,0.00022027,7]
[316052793,1709339450885,-500.0,0.00022027,2]
[316052794,1709339450894,-151.0,0.00022027,7]
[316052795,1709339450903,-500.0,0.00022027,2]
[316052796,1709339450912,-500.0,0.00022027,2]
[316052797,1709339450922,-500.0,0.00022027,2]
[316052798,1709339450931,-500.0,0.00022027,2]
[316052799,1709339450940,-500.0,0.00022027,2]
[316052800,1709339450949,-408.85490385,0.00022027,2]
[316052801,1709339450959,-500.0,0.00022027,2]
[316052802,1709339450968,-500.0,0.00022027,2]
[316052803,1709339450977,-500.0,0.00022027,2]
[316052804,1709339450986,-680.6,0.00022027,2]
[316052805,1709339450997,-704.35,0.00022027,2]
[316052806,1709339451006,-500.0,0.00022027,2]
[316052807,1709339451015,-500.0,0.00022027,2]
[316052808,1709339451024,-500.0,0.00022027,2]
[316052809,1709339451033,-500.0,0.00022027,2]
[316052810,1709339451042,-713.5,0.00022027,2]
[316052811,1709339451052,-558.02967208,0.00022027,2]
[316052812,1709339451061,-500.0,0.00022027,2]
[316052813,1709339451071,-500.0,0.00022027,2]
[316052814,1709339451080,-500.0,0.00022027,2]
[316052815,1709339451089,-500.0,0.00022027,2]
[316052816,1709339451098,-500.0,0.00022027,2]
[316052817,1709339451107,-500.0,0.00022027,2]
[316052818,1709339451116,-500.0,0.00022027,2]
[316052819,1709339451125,-500.0,0.00022027,2]
[316052820,1709339451135,-500.0,0.00022027,2]
[316052821,1709339451144,-500.0,0.00022027,2]
[316052822,1709339451153,-500.0,0.00022027,2]
[316052823,1709339451162,-151.0,0.00022027,7]
[316052824,1709339451172,-500.0,0.00022027,2]
[316052825,1709339451181,-500.0,0.00022027,2]
[316052826,1709339451190,-500.0,0.00022027,2]
[316052827,1709339451199,-500.0,0.00022027,2]
[316052828,1709339451208,-500.0,0.00022027,2]
[316052829,1709339451217,-500.0,0.00022027,2]
[316052830,1709339451227,-520.42476085,0.00022027,2]
[316052831,1709339451237,-500.0,0.00022027,2]
[316052832,1709339451246,-1175.35,0.00022027,2]
[316052833,1709339451255,-500.0,0.00022027,2]
[316052834,1709339451264,-500.0,0.00022027,2]
[316052835,1709339451274,-500.0,0.00022027,2]
[316052836,1709339451283,-566.35,0.00022027,2]
[316052837,1709339451292,-500.0,0.00022027,2]
[316052838,1709339451303,-1197.2,0.00022027,2]
[316052839,1709339451312,-500.0,0.00022027,2]
[316052840,1709339451322,-500.0,0.00022027,2]
[316052841,1709339451331,-151.0,0.00022027,7]
[316052842,1709339451340,-500.0,0.00022027,2]
[316052843,1709339451350,-1161.01,0.00022027,2]
[316052844,1709339451360,-666.03,0.00022027,2]
[316052845,1709339451370,-904.93,0.00022027,2]
[316052846,1709339451379,-641.28,0.00022027,2]
[316052847,1709339451388,-552.76,0.00022027,2]
[316052848,1709339451398,-500.0,0.00022027,2]
[316052849,1709339451407,-500.0,0.00022027,2]
[316052850,1709339451416,-749.66,0.00022027,2]
[316052851,1709339451426,-503.50666414,0.00022027,2]
[316052852,1709339451435,-500.0,0.00022027,2]
[316052853,1709339451444,-1166.82,0.00022027,2]
[316052854,1709339451452,-509.39,0.00022027,2]
[316052855,1709339451462,-500.0,0.00022027,2]
[316052856,1709339451471,-500.0,0.00022027,2]
[316052857,1709339451480,-500.0,0.00022027,2]
[316052858,1709339451489,-659.15,0.00022027,2]
[316052859,1709339451499,-500.0,0.00022027,2]
[316052860,1709339451509,-500.0,0.00022027,2]
[316052861,1709339451518,-1185.55,0.00022027,2]
[316052862,1709339451528,-555.56886188,0.00022027,2]
[316052863,1709339451537,-500.0,0.00022027,2]
[316052864,1709339451546,-1037.41,0.00022027,2]
[316052865,1709339451556,-500.0,0.00022027,2]
[316052866,1709339451566,-620.46,0.00022027,2]
[316052867,1709339451576,-500.0,0.00022027,2]
[316052868,1709339451585,-500.0,0.00022027,2]
[316052869,1709339451594,-500.0,0.00022027,2]
[316052870,1709339451603,-500.0,0.00022027,2]
[316052871,1709339451612,-500.0,0.00022027,2]
[316052872,1709339451621,-677.55,0.00022027,2]
[316052873,1709339451631,-500.0,0.00022027,2]
[316052874,1709339451641,-951.68,0.00022027,2]
[316052875,1709339451651,-500.0,0.00022027,2]
[316052876,1709339451660,-985.01,0.00022027,2]
[316052877,1709339451669,-500.0,0.00022027,2]
[316052878,1709339451678,-500.0,0.00022027,2]
[316052879,1709339451687,-151.0,0.00022027,7]
[316052880,1709339451697,-618.52917198,0.00022027,2]
[316052881,1709339451707,-500.0,0.00022027,2]
[316052882,1709339451716,-500.0,0.00022027,2]